Cogmind - Beta 11 @@@ ROGUE MODE // 2022.04.11 @ 23:44:59 Player: Azken Zutik Result: Destroyed by 8R-AWN with 8R-AWN's Boregun Performance ------------- Evolutions (0) 0 Regions Visited (3) 600 Robots Destroyed (42) 210 Value Destroyed (695) 695 Prototype IDs (32) 640 Alien Tech Used (0) 0 Bonus (300) 300 TOTAL SCORE: 2445 Bonus ------- Aligned with FarCom 300 Cogmind --------- Core Integrity 0/250 Matter 295/300 Energy 95/100 System Corruption 0% Temperature Cool (0) Movement Treading (160) Location -10/Exiles Parts ------- > --- POWER (1) -------- (None) > --- PROPULSION (2) --- Light Treads Light Treads > --- UTILITY (2) ------ Large Storage Unit Core Shielding > --- WEAPON (2) ------- Light Assault Rifle Longsword +1 > --- INVENTORY (15) --- Light Treads Light Treads Core Shielding Core Shielding Assault Rifle Light Assault Rifle Light Assault Rifle Light Assault Rifle Rocket Launcher Peak State ------------ > --- POWER ------------ Light Ion Engine > --- PROPULSION ------- Light Treads Light Treads > --- UTILITY ---------- Large Storage Unit Experimental Sensor Array > --- WEAPON ----------- Assault Rifle Light Assault Rifle > --- INVENTORY -------- Light Treads Light Treads Huge Storage Unit High-capacity Matter Pod High-capacity Matter Pod Core Shielding Core Shielding Core Shielding Assault Rifle Light Assault Rifle Light Assault Rifle Light Assault Rifle Light Assault Rifle Rocket Launcher Datajack [Rating: 16] Favorites ----------- Power Light Ion Engine Engine Light Ion Engine Propulsion Light Treads Treads Light Treads Utility Core Shielding Device Tractor Beam Storage Large Storage Unit Protection Core Shielding Weapon Assault Rifle Energy Gun Small Laser Ballistic Gun Assault Rifle Launcher Rocket Launcher Slashing Weapon Longsword +1 Special Melee Weapon Datajack Build | -11 -10 -10 -10 ------- Run | Scr Mat Min Exi Slots Evolved . | . . . . Power . | . . . . Propulsion . | . . . . Utility . | . . . . Weapon . | . . . . Parts Attached 32 | 8 16 2 6 Power 3 | 1 2 . . Engine 3 | 1 2 . . Core . | . . . . Reactor . | . . . . Propulsion 4 | 2 2 . . Treads 4 | 2 2 . . Leg . | . . . . Wheel . | . . . . Hover . | . . . . Flight . | . . . . Utility 12 | 2 7 2 1 Device 3 | 1 1 1 . Storage 5 | 1 4 . . Processor . | . . . . Hackware . | . . . . Protection 4 | . 2 1 1 Artifact . | . . . . Weapon 13 | 3 5 . 5 Energy Gun 1 | 1 . . . Energy Cannon . | . . . . Ballistic Gun 9 | 2 5 . 2 Ballistic Cannon . | . . . . Launcher 1 | . . . 1 Special Weapon . | . . . . Impact Weapon . | . . . . Slashing Weapon 1 | . . . 1 Piercing Weapon . | . . . . Special Melee Weapon 1 | . . . 1 Unidentified Prototypes 1 | . . 1 . Parts Lost 4 | . 2 . 2 Power 2 | . 1 . 1 Propulsion 1 | . 1 . . Utility . | . . . . Weapon 1 | . . . 1 Highest Loss Streak 2 | . 1 . 2 To Critical Strikes 1 | . . . 1 Average Slot Usage (%) 97 | . 94 100 99 Engine 12 | . 10 14 13 Treads 27 | . 27 28 28 Device 1 | . 4 . . Storage 14 | . 14 14 14 Protection 11 | . 8 13 13 Ballistic Gun 26 | . 27 28 22 Naked Turns . | . . . . Heaviest Build 30 | 15 27 27 30 Greatest Support 40 | 40 40 40 40 Greatest Overweight (x) . | . . . . Average Overweight (x) . | . . . . Largest Inventory Capacity 25 | 8 25 15 15 Average Capacity 13 | 7 10 15 15 Most Carried 15 | 3 13 15 15 Average Carried 11 | 1 9 14 13 Final Capacity 15 | 8 15 15 15 Final Carried 15 | 3 13 15 9 Class Distribution -------------------- 100% | Mutant Dominant Class ---------------- Mutant | -10/Materials Mutant | -10/Mines Mutant | -10/Exiles Resources | -11 -10 -10 -10 ----------- Run | Scr Mat Min Exi Matter Collected 1531 | 352 1010 44 125 Remotely 260 | 117 143 . . Salvage Created 1301 | 192 1031 78 . Parts 82 | 15 58 9 . Haulers Intercepted 2 | . 2 . . Recyclers Shooed 2 | 1 1 . . Parts Field Recycled . | . . . . Retrieved Matter . | . . . . Parts Self-Destructed . | . . . . Prevented . | . . . . Kills | -11 -10 -10 -10 ------- Run | Scr Mat Min Exi Combat Hostiles Destroyed 26 | . 20 6 . Guns 26 | . 20 6 . Classes Destroyed 9 | 3 6 . . Worker 5 | 2 3 . . Builder 1 | . 1 . . Tunneler 4 | 4 . . . Hauler 2 | . 2 . . Recycler 2 | 1 1 . . Operator 1 | . 1 . . Watcher 1 | . 1 . . Swarmer 12 | . 6 6 . Grunt 14 | . 14 . . Best Kill Streak 4 | 4 3 3 . Combat Bots Only 3 | . 3 3 . Max Kills in Single Turn 1 | 1 1 1 . Gunslinging . | . . . . Exploded . | . . . . Melee . | . . . . Uniques/NPCs Destroyed . | . . . . Combat | -11 -10 -10 -10 -------- Run | Scr Mat Min Exi Damage Taken 1195 | . 699 173 323 Core 261 | . 98 28 135 Absorbed by Shields . | . . . . Redirected to Shielding 51 | . 18 5 28 Regen/Repaired (Parts) 180 | . 180 . . Core Remaining (%) 100 | 100 . . . Volleys Fired 97 | 12 70 11 4 Largest 2 | 2 2 2 2 Hottest 40 | 40 40 40 40 Shots Fired 193 | 24 140 22 7 Gun 193 | 24 140 22 7 Cannon . | . . . . Launcher . | . . . . Special . | . . . . Kinetic 193 | 24 140 22 7 Thermal . | . . . . Explosive . | . . . . Electromagnetic . | . . . . Robot Hit Streak 14 | 6 14 5 2 Robot Miss Streak 2 | 1 2 2 1 Penetration Max . | . . . . Secondary Targets 4 | . 3 1 . Max Gunslinging Chain 1 | . 1 1 . Shots Hit Robots 141 | 16 100 12 13 Core Hits 65 | 8 47 7 3 Critical Kills . | . . . . Critical Parts Destroyed . | . . . . Critical Strikes . | . . . . Melee Attacks 10 | . . . 10 Impact . | . . . . Slashing 9 | . . . 9 Piercing . | . . . . Sneak Attacks 1 | . . . 1 Combat Hostiles . | . . . . Follow-up Attacks . | . . . . Damage Inflicted 1867 | 210 1135 122 400 Guns 1514 | 210 1135 122 47 Cannons . | . . . . Explosions . | . . . . Melee 353 | . . . 353 Ramming . | . . . . Kinetic 1514 | 210 1135 122 47 Thermal . | . . . . Explosive . | . . . . Electromagnetic . | . . . . Impact . | . . . . Slashing 353 | . . . 353 Piercing . | . . . . Highest Corruption . | . . . . Average Corruption . | . . . . Corruption Purged . | . . . . Corruption Blocked . | . . . . Overload Shots . | . . . . Overflow Damage . | . . . . Projectiles . | . . . . Explosions . | . . . . Melee . | . . . . Knockbacks . | . . . . Impact . | . . . . Kinetic . | . . . . Secondary . | . . . . Self-Inflicted Damage . | . . . . Shots . | . . . . Rammed . | . . . . Targets Rammed . | . . . . Kicked . | . . . . Crushed . | . . . . Highest Temperature 36 | . 36 . . Average Temperature 10 | . 10 . . Received Heat Transfer 324 | . 324 . . Siege Activations . | . . . . Robots Corrupted . | . . . . Combat Hostiles . | . . . . Parts Fried . | . . . . Impact Corruptions . | . . . . Robots Melted . | . . . . Combat Hostiles . | . . . . Parts Melted . | . . . . Heat Transferred . | . . . . Parts Sabotaged . | . . . . Parts Stolen . | . . . . Parts Stripped . | . . . . Power Chain Reactions . | . . . . Missiles Intercepted . | . . . . Alert | -11 -10 -10 -10 ------- Run | Scr Mat Min Exi Peak Influence 303 | 35 303 148 . Initial 78 | . 22 78 . Average 112 | 12 172 38 . Maximum Alert Level 1 | . 1 . . Low Security (%) 83 | 100 70 100 . Level 1 16 | . 29 . . Level 2 . | . . . . Level 3 . | . . . . Level 4 . | . . . . Level 5 . | . . . . High Security . | . . . . Max Security . | . . . . Squads Dispatched 6 | . 6 . . Investigation 6 | . 6 . . Extermination . | . . . . Reinforcement . | . . . . Assault . | . . . . Garrison . | . . . . Intercept . | . . . . Searches Triggered . | . . . . Construction Impeded . | . . . . Haulers Reinforced . | . . . . Active Scanning Responses . | . . . . Cargo Convoy Interrupts . | . . . . Stealth | -11 -10 -10 -10 --------- Run | Scr Mat Min Exi Distress Signals . | . . . . Communications Jammed . | . . . . Distress Signals . | . . . . Times Spotted 44 | . 30 8 6 Peak Tracking Total 9 | . 4 3 9 Tactical Retreats 2 | . 1 1 . Traps | -11 -10 -10 -10 ------- Run | Scr Mat Min Exi Traps Triggered 4 | . 4 . . Indirectly . | . . . . Trap Hack Attempts . | . . . . Triggered . | . . . . Disarmed . | . . . . Reprogrammed . | . . . . Reused . | . . . . Traps Extracted . | . . . . Installed . | . . . . Triggered . | . . . . Exploded 3 | . . . 3 Machines | -11 -10 -10 -10 ---------- Run | Scr Mat Min Exi Machines Disabled 1 | . . . 1 Max in Single Turn 1 | . . . 1 Machines Sabotaged . | . . . . Garrisons Compromised . | . . . . Overloaded Fab Kills . | . . . . Hacking | -11 -10 -10 -10 --------- Run | Scr Mat Min Exi Machines Accessed 11 | . 9 . 2 Terminals 6 | . 6 . . Fabricators . | . . . . Repair Stations 1 | . 1 . . Recycling Units 2 | . 2 . . Scanalyzers . | . . . . Garrison Access . | . . . . Total Hacks 28 | . 26 . 2 Successful 18 | . 16 . 2 Failed 10 | . 10 . . Catastrophic 4 | . 4 . . Database Lockouts . | . . . . Manual 15 | . 14 . 1 Terminals 16 | . 16 . . Fabricators . | . . . . Repair Stations 8 | . 8 . . Recycling Units 2 | . 2 . . Scanalyzers . | . . . . Garrison Access . | . . . . Terminal Hacks 7 | . 5 . 2 Record 1 | . . . 1 Part Schematic 2 | . 2 . . Robot Analysis 1 | . 1 . . Branch Access Points 1 | . 1 . . Hauler Manifests 1 | . 1 . . EX-Prototype ID Bank 1 | . . . 1 Fabricator Hacks . | . . . . Repair Station Hacks 8 | . 8 . . Scan Component 4 | . 4 . . Repair 4 | . 4 . . Recycling Unit Hacks . | . . . . Scanalyzer . | . . . . Garrison Access Hacks . | . . . . Unauthorized Hacks 3 | . 3 . . Terminals 1 | . 1 . . Botnet 1 | . 1 . . Fabricators . | . . . . Repair Stations . | . . . . Recycling Units 2 | . 2 . . Tunnel 2 | . 2 . . Scanalyzers . | . . . . Garrison Access . | . . . . Data Cores Recovered . | . . . . Used . | . . . . Hacking Detections 6 | . 6 . . Full Trace Events 1 | . 1 . . Feedback Events . | . . . . Feedback Blocked . | . . . . Robot Schematics Acquired . | . . . . Robots Built . | . . . . Authchips . | . . . . Time . | . . . . Total Robot Build Rating . | . . . . Part Schematics Acquired 2 | . 2 . . Parts Built . | . . . . Authchips . | . . . . Time . | . . . . Total Part Build Rating . | . . . . Parts Repaired 4 | . 4 . . Time 104 | . 104 . . Parts Recycled . | . . . . Recycled Matter . | . . . . Retrieved Matter . | . . . . Retrieved Components . | . . . . Parts Scanalyzed . | . . . . Part Schematics Acquired . | . . . . Parts Damaged . | . . . . Bothacking | -11 -10 -10 -10 ------------ Run | Scr Mat Min Exi Used RIF Installer . | . . . . Robots Hacked 1 | . . . 1 Non-combat . | . . . . Combat 1 | . . . 1 Robot Hacks Applied 1 | . . . 1 parse_system 1 | . . . 1 Relay Couplers Released . | . . . . Fabnet Peak Effective % . | . . . . Robots Rewired . | . . . . Allies Hacked . | . . . . Hacks Repelled . | . . . . Allies | -11 -10 -10 -10 -------- Run | Scr Mat Min Exi Total Allies 3 | . . 3 . Largest Group 3 | . . 3 3 Highest-Rated Group 40 | . . 40 40 Highest-Rated Ally 16 | . . 16 16 Total Orders 4 | . . . 4 STAY 3 | . . . 3 FOLLOW 1 | . . . 1 Ally Attacks 9 | . . . 9 Total Damage 68 | . . . 68 Kills 1 | . . . 1 Allies Corrupted . | . . . . Allies Melted . | . . . . Intel | -11 -10 -10 -10 ------- Run | Scr Mat Min Exi Robot Analysis Total 1 | . 1 . . Derelict Logs Recovered 2 | . . 2 . Drone Launches . | . . . . Drone Recoveries . | . . . . Exploration | -11 -10 -10 -10 ------------- Run | Scr Mat Min Exi Turns Passed 4899 | 151 1890 1344 1514 Spaces Moved 2578 | 64 856 762 896 Core 2 | 2 . . . Treads 2576 | 62 856 762 896 Legs . | . . . . Wheels . | . . . . Hover . | . . . . Flight . | . . . . Fastest Speed 50 | 50 160 160 160 Average Speed 159 | 156 160 160 160 Slowest Speed 160 | 160 160 160 160 Overloaded Moves . | . . . . Propulsion Burnouts . | . . . . Robots Hopped . | . . . . Cave-ins Triggered . | . . . . Exploration Rate (%) 67 | 5 96 98 70 Regions Visited 3 Branch Regions 2 Pre-discovered Areas 3 | . 2 . 1 Known Exits Taken 1 | . 1 . . Unknown Exits Taken 2 | 1 . 1 . Scrap Searched 1 | . . 1 . Spaces Dug . | . . . . Terrain Destroyed . | . . . . Melee . | . . . . Projectile . | . . . . AOE . | . . . . Terrain Rammed . | . . . . Walls Destroyed . | . . . . Machines Disabled . | . . . . Actions | -11 -10 -10 -10 --------- Run | Scr Mat Min Exi Total 3174 | 87 1251 867 969 Wait 382 | . 277 87 18 Move 2575 | 63 855 761 896 Hop . | . . . . Pick Up 40 | 4 18 4 14 Fast Attach 17 | 6 9 . 2 Attach 3 | 1 1 . 1 Detach . | . . . . Swap 12 | 1 6 2 3 Drop 38 | . 15 2 21 Fire 97 | 12 70 11 4 Melee 10 | . . . 10 Ram . | . . . . Kick . | . . . . Crush . | . . . . Escape Stasis . | . . . . Rewire . | . . . . Trap . | . . . . Miscellaneous . | . . . . Route ------- -11/Scrapyard -10/Materials (discovered 5 exits: [*Mat x3] / *Min x2) -10/Mines (discovered 3 exits: [*Mat x2] / *Exi) -10/Exiles History --------- Turn | Location | Event 27 | -11/Scrapyard | Discovered new exit (range 16) 152 | -11/Scrapyard | Entered Materials 305 | -10/Materials | Build established: Mutant 344 | -10/Materials | Identified exit to Mines 584 | -10/Materials | Discovered new exit (range 15) 838 | -10/Materials | Discovered new exit (range 4) 1383 | -10/Materials | Repaired Lgt. Assault Rifle 1410 | -10/Materials | Repaired Lgt. Treads 1438 | -10/Materials | Repaired Assault Rifle 1465 | -10/Materials | Repaired Lgt. Ion Engine 1577 | -10/Materials | Discovered new exit (range 11) 2042 | -10/Materials | Entered Mines 2246 | -10/Mines | Deemed a non-threat by the Exiles lab entrance 2247 | -10/Mines | Discovered new exit (range 5) 2393 | -10/Mines | Discovered new exit (range 9) 2609 | -10/Mines | Received a Rocket Launcher from a helpful Derelict 2674 | -10/Mines | Learned Materials terminal intel 2765 | -10/Mines | Discovered new exit (range 10) 2846 | -10/Mines | Core integrity fell below 50% 2981 | -10/Mines | Found a damaged Exp. Sensor Array with a note attached 2985 | -10/Mines | Found Prototype Device 2999 | -10/Mines | Identified Exp. Sensor Array 3021 | -10/Mines | Learned location of 1 exit from Materials 3157 | -10/Mines | Assisted by bots powering up and referring to "LRC-V3" 3386 | -10/Mines | Entered Exiles 3386 | -10/Exiles | Accompanied by 3 allies 3431 | -10/Exiles | Met 8R-AWN 3465 | -10/Exiles | Met EX-HEX 3529 | -10/Exiles | Met EX-BIN 3564 | -10/Exiles | Aligned with FarCom system 3566 | -10/Exiles | Given EX-Vault access code 3617 | -10/Exiles | Opened EX-Vault 3633 | -10/Exiles | Found Longsword +1 3647 | -10/Exiles | Found PSU Rigger 3653 | -10/Exiles | Found Firepult 3689 | -10/Exiles | Warned to stay clear of 0b10 Research branches 3743 | -10/Exiles | Met EX-DEC 3764 | -10/Exiles | Learned location of Zion (-6) 4768 | -10/Exiles | Attacked by the Exiles 4896 | -10/Exiles | Core integrity fell below 20% 4900 | -10/Exiles | Destroyed by 8R-AWN with 8R-AWN's Boregun Last Messages --------------- 04884_ HV Slug penetrates Earth. 04884_ Penetrated by HV Slug. 04884_ HV Slug penetrates Earth. 04886_ Penetrated by HV Slug. 04886_ HV Slug penetrates Earth. 04886_ Penetrated by HV Slug. 04886_ HV Slug penetrates Earth. 04890_ Penetrated by HV Slug. 04890_ HV Slug penetrates Earth. 04890_ Penetrated by HV Slug. 04890_ Critical hit (Destroy). 04890_ Assault Rifle destroyed. 04890_ HV Slug penetrates Earth. 04892_ Penetrated by HV Slug. 04892_ HV Slug penetrates Earth. 04892_ Penetrated by HV Slug. 04892_ Lgt. Ion Engine destroyed. 04895_ HV Slug penetrates Wall. 04895_ HV Slug penetrates Machine. 04895_ Penetrated by HV Slug. Map ----- +----------------------------------------------------+ | ?????????????????????????????????????????????????? | | ?????????????????????????????????????????????????? | | ?????????????????????????????????????????????????? | | ?????????????????????????????????????????????????? | | ?????????????????????????????????????????????????? | | ?????????????????????????????????????????????????? | | ?????????????????????????????????????????????????? | | ?????????????????????????????????????????????????? | | ?????????????????????????????????????????????????? | | ?????????????????????????????????????????????????? | | ?????????????????????????????????????????????????? | | ?????????????????????????????????????????????????? | | ?????????????????????????????????????????????????? | | ?????????????????????????????????????????????????? | | ?????????? ??????????????????????????????????????? | | ?????????? ?????????????????????????????????????? | | ?????????? ???????????????????????????????????? | | ??????????# ??????????????#######?????????????? | | ??????????# ######???????#!!! "#?????????????? | | ??????????# #""##?????# "#?????????????? | | ???????????# #?????# "#?????????????? | | ???????????##" ##???## ""#????????????## | | ???????????#"" #####" ""#???????????? | | ??????????????# !! ##" ""#????????????" | | ??????????????## /] g #"" #??????????????" | | ???????????????#"## @ #?????????????"" | | ??????????????????#### ##????????????"" | | ?????????????????????### "###?????????? | | ???????????????######## ;;#???????????" | | ???????????????# !!""" ##??????????# | | ???????????????#! "###" % ;""###???### | | ???????????????#! "#?#; % ""#####X# | | ???????????????#! !!##??# %= | | ???????????????# ! " ""#;#???#"# *%! | | ???????????????########## #???#### = | | ????????????????????????# #??????### %= | | ????????????????????????? ?????????### | | ????????????????????????? ???????????## | | ????????????????????????? ????????????## | | ????????????????????????? ?????????????##" | | ????????????????????????? ??????????????#""" | | ????????????????????????? ?????????????##" | | ???????????????????????????????????????#"" | | ??????????????????????????????????????##""" | | ??????????????????????????????????????#""" | | ??????????????????????????????????????#""" | | ??????????????????????????????????????#"" | | ??????????????????????????????????????#""" | | ??????????????????????????????????????#"" | | ??????????????????????????????????????##"" | +----------------------------------------------------+ Best States ------------- Heat Dissipation 35 Energy Generation 10 Energy Capacity 250 Matter Stores 300 Matter Capacity 300 Sight Range 16 Robot Scan Range 20 Terrain Scan Density 10 Core Shielding 20 Propulsion Shielding 33 Evasion (%) 40 Recoil Reduction 2 Item Schematics ----------------- Hcp. Storage Unit | -10/Materials | Hacked Huge Storage Unit | -10/Materials | Hacked Robot Schematics ------------------ None Fabricated ------------ Nothing Alien Tech Used ----------------- None Achievements -------------- None Challenges ------------ None Game ------ Seed SmallSkeletonInsulator Manual? 0 Play Time 00:27:28 Cumulative 283.1 hours Start 2022.04.11 @ 23:19:36 End 2022.04.11 @ 23:44:59 Sessions 1 Manual Loads 0 Difficulty Rogue Special Mode None Game No. 79 Rogue 79 Adventurer 0 Explorer 0 Win Type - Total 6 Types 3/1/0/0/2/0/0/0/0 Lore% 58 Gallery% 72 Achievement% 66 Wizard Run 0 Options --------- ASCII 0 Keyboard 0 Movement Arrows Keybinds 0 Fullscreen 0 Font 28/SmallcapsGlow Map View 72x54 Tactical HUD 1 Map Filters NONE Filters NONE Steam 1 RUN: 37a3b68c-9b76-4c64-b50a-53ba7371a685